bitfinex/quotes_BTCUSD_20250101
["timestamp","ask_amount","ask_price","bid_price","bid_amount"]
[1735754532381,0.37087344,94245.0,94244.0,0.07055127]
[1735754532971,0.00866144,94245.0,94244.0,0.07055127]
[1735754533229,8.54e-05,94245.0,94244.0,0.29758596]
[1735754533501,8.54e-05,94245.0,94244.0,0.12781037]
[1735754533991,8.54e-05,94245.0,94244.0,0.15081037]
[1735754534234,0.00806069,94255.0,94244.0,0.15081037]
[1735754534431,0.21753267,94254.0,94244.0,0.15081037]
[1735754534604,0.169188,94253.0,94244.0,0.15081037]
[1735754535615,0.212211,94246.0,94244.0,0.12781037]
[1735754535881,0.447589,94245.0,94244.0,0.12781037]
[1735754536082,0.44810568,94245.0,94244.0,0.12781037]
[1735754536235,0.44810568,94245.0,94244.0,0.11705127]
[1735754536596,0.45616637,94245.0,94244.0,0.00031981]
[1735754537048,0.14898637,94245.0,94244.0,0.00031981]
[1735754537540,0.12398637,94245.0,94244.0,0.00031981]
[1735754538708,0.00857737,94245.0,94244.0,0.00031981]
[1735754541393,0.15857737,94245.0,94244.0,0.00031981]
[1735754542025,0.32594837,94245.0,94244.0,0.00031981]
[1735754544005,0.32229337,94245.0,94244.0,0.00031981]
[1735754545181,0.28525537,94245.0,94244.0,0.00031981]
[1735754547444,0.15857737,94245.0,94244.0,0.00031981]
[1735754547846,0.15,94245.0,94244.0,0.00031981]
[1735754549663,0.15,94245.0,94238.0,0.023]
[1735754549865,0.15,94243.0,94239.0,0.00022028]
[1735754550576,0.15,94241.0,94239.0,0.00022028]
[1735754550805,0.15,94241.0,94239.0,0.00122028]
[1735754552158,0.15,94243.0,94240.0,0.023]
[1735754553343,0.15,94243.0,94240.0,0.024]
[1735754553566,0.212215,94244.0,94240.0,0.024]
[1735754554080,0.15,94243.0,94240.0,0.024]
[1735754554879,0.362219,94242.0,94241.0,0.03375502]
[1735754556390,0.362219,94242.0,94241.0,0.03475502]
[1735754561279,0.15,94242.0,94241.0,0.03475502]
[1735754577767,0.15,94242.0,94241.0,0.03492562]
[1735754577976,0.1500853,94242.0,94241.0,0.03492562]
[1735754579511,0.1500853,94242.0,94241.0,0.01192562]
[1735754579512,0.15814605,94242.0,94241.0,0.01192562]
[1735754579713,0.15814605,94242.0,94241.0,0.0011706]
[1735754580118,1.05697285,94242.0,94241.0,0.0011706]
[1735754580738,1.05697285,94242.0,94241.0,0.0001706]
[1735754580952,1.05797285,94242.0,94241.0,0.0001706]
[1735754581160,1.01602485,94242.0,94241.0,0.0001706]
[1735754581386,0.90927385,94242.0,94241.0,0.0001706]
[1735754581537,0.89311985,94242.0,94241.0,0.0001706]
[1735754581723,0.89411985,94242.0,94241.0,0.0001706]
[1735754581919,0.89811985,94242.0,94241.0,0.0001706]
[1735754582328,0.89411985,94242.0,94241.0,0.0001706]
[1735754582774,0.89711985,94242.0,94241.0,0.0001706]
[1735754583091,0.89411985,94242.0,94241.0,0.0001706]
[1735754583446,0.84874085,94242.0,94241.0,0.0001706]
[1735754583665,0.15867085,94242.0,94241.0,0.0001706]
[1735754583873,0.26624885,94242.0,94241.0,0.0001706]
[1735754584253,0.26924885,94242.0,94241.0,0.0001706]
[1735754584683,0.26624885,94242.0,94241.0,0.0001706]
[1735754584893,0.215219,94242.0,94241.0,0.0001706]
[1735754585090,0.393131,94242.0,94241.0,0.0001706]
[1735754585462,0.215219,94242.0,94241.0,0.1450706]
[1735754585667,0.216219,94242.0,94241.0,0.1450706]
[1735754585838,0.216219,94242.0,94241.0,0.15505913]
[1735754586302,0.001,94242.0,94241.0,0.27994529]
[1735754586500,0.001,94242.0,94241.0,0.31259382]
[1735754586702,0.212198,94252.0,94246.0,0.05354837]
[1735754586908,0.212198,94252.0,94249.0,0.023]
[1735754587115,0.212198,94252.0,94251.0,0.023]
[1735754587485,0.212198,94252.0,94251.0,0.03298853]
[1735754587681,0.212198,94252.0,94251.0,0.03098853]
[1735754588424,0.214198,94252.0,94251.0,0.03098853]
[1735754589339,0.214198,94252.0,94251.0,0.05748085]
[1735754589755,0.214198,94252.0,94251.0,0.03098853]
[1735754591352,0.2142833,94252.0,94251.0,0.03098853]
[1735754592205,0.2142833,94252.0,94251.0,0.00998853]
[1735754592416,0.6938123,94252.0,94251.0,0.00998853]
[1735754592619,0.424398,94251.0,94243.0,0.023]
[1735754592804,0.580781,94251.0,94243.0,0.023]
[1735754593152,0.580781,94251.0,94245.0,0.023]
[1735754593363,0.212203,94249.0,94245.0,0.023]
[1735754593563,0.212212,94245.0,94244.0,0.023]
[1735754594564,0.212212,94245.0,94244.0,0.04298099]
[1735754594864,0.212212,94245.0,94244.0,0.023]
[1735754595272,0.212212,94245.0,94244.0,0.024]
[1735754595574,0.212212,94245.0,94244.0,0.025]
[1735754596943,0.212203,94249.0,94244.0,0.025]
[1735754597742,0.212203,94249.0,94244.0,0.024]
[1735754597947,0.2122,94251.0,94244.0,0.023]
[1735754598422,0.001,94249.0,94244.0,0.023]
[1735754598559,0.001,94249.0,94244.0,0.04723339]
[1735754598774,0.001,94249.0,94245.0,0.0772]
[1735754599184,0.001,94249.0,94246.0,0.12698632]
[1735754599790,0.001,94249.0,94248.0,0.023]
[1735754600198,0.001,94249.0,94247.0,0.023]
[1735754600488,0.001,94249.0,94248.0,0.00998717]
[1735754600692,8.53e-05,94252.0,94248.0,0.00998717]
[1735754601499,0.002,94251.0,94248.0,0.00998717]
[1735754601702,8.53e-05,94252.0,94248.0,0.00998717]
[1735754602103,0.0020853,94252.0,94248.0,0.00998717]
[1735754602710,0.212199,94251.0,94248.0,0.00998717]
[1735754603341,0.214375,94250.0,94248.0,0.00998717]
[1735754603542,0.212199,94251.0,94248.0,0.00998717]
[1735754603746,0.214199,94251.0,94248.0,0.00998717]
[1735754604146,0.212203,94249.0,94248.0,0.00998717]
[1735754604353,0.002,94251.0,94248.0,0.00998717]
[1735754605036,0.212199,94251.0,94248.0,0.00998717]
[1735754605244,0.001,94249.0,94248.0,0.00998717]
[1735754606163,0.212199,94251.0,94248.0,0.00998717]
[1735754606552,8.53e-05,94252.0,94248.0,0.00998717]
[1735754607525,0.002,94251.0,94248.0,0.00998717]
[1735754607729,8.53e-05,94252.0,94248.0,0.00998717]
[1735754608149,0.0020853,94252.0,94248.0,0.00998717]
[1735754608354,0.0020853,94252.0,94251.0,0.104]
[1735754608516,0.0020853,94252.0,94251.0,0.30903469]
[1735754608756,0.0020853,94252.0,94251.0,0.31901937]
[1735754609389,8.53e-05,94252.0,94251.0,0.31901937]
[1735754609973,8.53e-05,94252.0,94251.0,0.32301937]
[1735754610734,0.0010853,94252.0,94251.0,0.32401937]
[1735754615345,0.0010853,94252.0,94251.0,0.32418997]
[1735754619264,0.0010853,94252.0,94251.0,0.2706416]
[1735754622062,0.0010853,94252.0,94251.0,0.32418997]
[1735754622446,0.0010853,94252.0,94251.0,0.2706416]
[1735754622644,0.0010853,94252.0,94251.0,0.32418997]
[1735754624307,0.0010853,94252.0,94251.0,0.2706416]
[1735754624510,0.0010853,94252.0,94251.0,0.03815528]
[1735754629244,0.0010853,94252.0,94251.0,0.03415528]
[1735754629420,8.53e-05,94252.0,94251.0,0.03315528]
[1735754629628,8.53e-05,94252.0,94251.0,0.03515528]
[1735754629833,0.0010853,94252.0,94251.0,0.03515528]
[1735754630033,0.0010853,94252.0,94251.0,0.03315528]
[1735754630444,0.0010853,94252.0,94251.0,0.03715528]
[1735754630657,0.0010853,94252.0,94251.0,0.0271706]
[1735754630861,0.0010853,94252.0,94251.0,0.03714749]
[1735754631064,0.0010853,94252.0,94251.0,0.0271706]
[1735754631339,0.0010853,94252.0,94251.0,0.03714749]
[1735754631340,8.53e-05,94252.0,94251.0,0.03714749]
[1735754631514,0.0010853,94252.0,94251.0,0.03814749]
[1735754637938,0.0010853,94252.0,94251.0,0.0281706]
[1735754638967,0.0010853,94252.0,94251.0,0.0051706]
[1735754639600,0.0010853,94252.0,94251.0,0.0011706]
[1735754639799,8.53e-05,94252.0,94251.0,0.0001706]
[1735754640280,0.0010853,94252.0,94251.0,0.0001706]
[1735754640499,1.0081543,94252.0,94251.0,0.0001706]
[1735754640714,0.5602883,94252.0,94251.0,0.0001706]
[1735754641915,0.5612883,94252.0,94251.0,0.0001706]
[1735754642142,0.5602883,94252.0,94251.0,0.0001706]
[1735754642474,0.5612883,94252.0,94251.0,0.0001706]
[1735754643109,0.5602883,94252.0,94251.0,0.0001706]
[1735754643466,0.5612883,94252.0,94251.0,0.0001706]
[1735754645500,0.5602883,94252.0,94251.0,0.0001706]
[1735754645706,0.5612883,94252.0,94251.0,0.0001706]
[1735754645915,0.5612883,94252.0,94251.0,0.0011706]
[1735754646289,0.5612883,94252.0,94251.0,0.0021706]
[1735754646507,0.5612883,94252.0,94251.0,0.00026793]
[1735754648402,0.4269453,94252.0,94251.0,0.00026793]
[1735754648763,0.3547883,94252.0,94251.0,0.00026793]
[1735754648938,0.1510853,94252.0,94251.0,0.00026793]
[1735754650102,0.5395553,94252.0,94251.0,0.00026793]
[1735754650504,0.4609553,94252.0,94251.0,0.00026793]
[1735754650649,0.4609553,94252.0,94251.0,0.00043853]
[1735754651015,0.4389303,94252.0,94251.0,0.00043853]
[1735754651189,0.4140013,94252.0,94251.0,0.00043853]
[1735754651619,0.3394473,94252.0,94251.0,0.00043853]
[1735754651972,0.3144473,94252.0,94251.0,0.00043853]
[1735754656819,0.36967055,94252.0,94251.0,0.00043853]
[1735754657025,0.1510853,94252.0,94251.0,0.00043853]
[1735754657164,0.6936273,94252.0,94251.0,0.00043853]
[1735754657681,0.4797363,94252.0,94251.0,0.00043853]
[1735754664901,0.4009893,94252.0,94251.0,0.00043853]
[1735754665080,0.3772203,94252.0,94251.0,0.00043853]
[1735754669434,0.3772203,94252.0,94244.0,1.3e-07]
[1735754669435,0.40866363,94245.0,94244.0,1.3e-07]
[1735754669644,0.04645163,94240.0,94239.0,6.1e-07]
[1735754669822,0.37613795,94240.0,94239.0,6.1e-07]
[1735754670237,0.42523795,94240.0,94239.0,6.1e-07]
[1735754670443,0.26404716,94240.0,94239.0,6.1e-07]
[1735754671690,0.26504716,94240.0,94239.0,6.1e-07]
[1735754672070,0.27304716,94240.0,94239.0,6.1e-07]
[1735754672565,0.26804716,94240.0,94239.0,6.1e-07]
[1735754672791,0.27704716,94240.0,94239.0,6.1e-07]
[1735754673408,0.32894716,94240.0,94239.0,6.1e-07]
[1735754673618,0.32494716,94240.0,94239.0,6.1e-07]
[1735754673985,0.71589414,94240.0,94239.0,6.1e-07]
[1735754674182,0.362271,94219.0,94218.0,0.0001706]
[1735754674380,1.984822,94219.0,94218.0,0.0001706]
[1735754674594,2.079526,94219.0,94218.0,0.0001706]
[1735754674792,2.014566,94219.0,94218.0,0.0001706]
[1735754675436,0.363271,94219.0,94218.0,0.0001706]
[1735754675643,2.07765,94219.0,94218.0,0.0001706]
[1735754675872,2.18263632,94219.0,94218.0,0.0001706]
[1735754677020,0.15,94218.0,94217.0,2e-07]
[1735754677199,1.92914232,94218.0,94217.0,2e-07]
[1735754677411,0.25398632,94218.0,94217.0,2e-07]
[1735754678204,0.25498632,94218.0,94217.0,2e-07]
[1735754679532,0.25798632,94218.0,94217.0,2e-07]
[1735754679731,0.25898632,94218.0,94217.0,2e-07]
[1735754680940,0.25398632,94218.0,94217.0,2e-07]
[1735754681118,0.25898632,94218.0,94217.0,2e-07]
[1735754681277,0.25998632,94218.0,94217.0,2e-07]
[1735754682428,0.25498632,94218.0,94217.0,2e-07]
[1735754682628,0.25398632,94218.0,94217.0,2e-07]
[1735754682830,0.26098632,94218.0,94217.0,2e-07]
[1735754683378,0.25798632,94218.0,94217.0,2e-07]
[1735754683582,0.25898632,94218.0,94217.0,2e-07]
[1735754697127,0.155,94218.0,94217.0,0.0798002]
[1735754697334,0.1551706,94218.0,94217.0,0.08910879]
[1735754698153,0.3064296,94218.0,94217.0,0.08910879]
[1735754698352,0.3064296,94218.0,94217.0,0.0798002]
[1735754698553,0.8064296,94218.0,94217.0,0.0798002]
[1735754699751,0.6551706,94218.0,94217.0,0.0798002]
[1735754699939,0.9676726,94218.0,94217.0,0.0798002]
[1735754700434,0.4676726,94218.0,94217.0,0.0798002]
[1735754701278,0.2826156,94218.0,94217.0,0.0798002]
[1735754706865,0.1551706,94218.0,94217.0,0.0798002]
[1735754707074,0.2864466,94218.0,94217.0,0.0798002]
[1735754707340,0.2864466,94218.0,94217.0,0.08910593]
[1735754707559,0.2864466,94218.0,94217.0,0.0798002]
[1735754710518,0.3963926,94218.0,94217.0,0.0798002]
[1735754710875,0.3715486,94218.0,94217.0,0.0798002]
[1735754711299,0.10255054,94218.0,94217.0,0.0798002]
[1735754711494,0.131067,94218.0,94217.0,0.0798002]
[1735754711724,0.131067,94218.0,94217.0,0.08910593]
[1735754712124,0.212271,94219.0,94217.0,0.08910593]
[1735754713395,0.115604,94218.0,94217.0,0.08910593]
[1735754713683,0.217271,94219.0,94217.0,0.08910593]
[1735754714203,0.216271,94219.0,94217.0,0.08910593]
[1735754714415,0.127594,94218.0,94217.0,0.08910593]
[1735754714949,0.127594,94218.0,94217.0,0.09110593]
[1735754715163,0.128594,94218.0,94217.0,0.09110593]
[1735754716446,0.127594,94218.0,94217.0,0.09110593]
[1735754716645,0.127594,94218.0,94217.0,0.09010593]
[1735754717007,0.127594,94218.0,94217.0,0.09210593]
[1735754720086,0.1277646,94218.0,94217.0,0.09210593]
[1735754721427,0.2777646,94218.0,94217.0,0.01230593]
[1735754721626,0.2777646,94218.0,94217.0,0.0030002]
[1735754722284,0.2777646,94218.0,94217.0,0.0020002]
[1735754722695,0.2797646,94218.0,94217.0,0.0020002]
[1735754723102,0.2777646,94218.0,94217.0,0.0020002]
[1735754723296,0.2777646,94218.0,94217.0,2e-07]
[1735754723501,0.1531706,94218.0,94217.0,2e-07]
[1735754723760,0.1601706,94218.0,94217.0,2e-07]
[1735754723947,0.1501706,94218.0,94217.0,2e-07]
[1735754724307,0.1591706,94218.0,94217.0,2e-07]
[1735754724512,0.1521706,94218.0,94217.0,2e-07]
[1735754724915,0.1601706,94218.0,94217.0,2e-07]
[1735754725316,0.26415692,94218.0,94217.0,2e-07]
[1735754725521,0.26215692,94218.0,94217.0,2e-07]
[1735754725731,0.26415692,94218.0,94217.0,2e-07]
[1735754726105,0.25615692,94218.0,94217.0,2e-07]
[1735754726424,0.25415692,94218.0,94217.0,2e-07]
[1735754726586,0.25915692,94218.0,94217.0,2e-07]
[1735754727048,0.27015692,94218.0,94217.0,2e-07]
[1735754727249,0.25615692,94218.0,94217.0,2e-07]
[1735754727478,0.25415692,94218.0,94217.0,2e-07]
[1735754727734,0.26315692,94218.0,94217.0,2e-07]
[1735754728374,0.26315692,94218.0,94203.0,8e-07]
[1735754728375,2.39215,94217.0,94203.0,8e-07]
[1735754728633,0.362305,94204.0,94203.0,8e-07]
[1735754728874,0.46629132,94204.0,94203.0,8e-07]
[1735754729877,0.47029132,94204.0,94203.0,0.00014996]
[1735754730088,0.46729132,94204.0,94203.0,9.6e-07]
[1735754730427,0.46729132,94204.0,94182.0,0.048]
[1735754730428,0.362352,94183.0,94182.0,0.048]
[1735754730763,0.362352,94183.0,94182.0,0.04804994]
[1735754731011,1.358695,94183.0,94182.0,0.04804994]
[1735754731221,1.369355,94183.0,94182.0,0.04804994]
[1735754731731,1.26098932,94183.0,94182.0,3e-07]
[1735754731977,0.56633832,94183.0,94182.0,3e-07]
[1735754732210,0.424822,94157.0,94154.0,0.04334436]
[1735754733468,0.424822,94157.0,94155.0,0.0769]
[1735754733830,0.424822,94157.0,94156.0,0.0182339]
[1735754734038,0.424822,94157.0,94156.0,0.0951339]
[1735754734250,0.20413502,94183.0,94163.0,0.0769]
[1735754734251,0.0001487,94183.0,94163.0,0.0769]
[1735754734453,0.212382,94170.0,94164.0,0.023]
[1735754734785,0.212382,94170.0,94165.0,0.0769]
[1735754735222,0.15,94169.0,94168.0,0.0769]
[1735754735670,0.15,94169.0,94168.0,0.0951462]
[1735754735890,0.15,94169.0,94168.0,0.0941462]
[1735754736419,0.152,94169.0,94168.0,0.0941462]
[1735754737052,0.002,94169.0,94168.0,0.0941462]
[1735754738460,0.15,94172.0,94168.0,0.0182462]
[1735754738827,0.001,94169.0,94167.0,0.048]
[1735754739019,0.001,94169.0,94168.0,0.0182462]
[1735754739237,0.001,94169.0,94167.0,0.048]
[1735754739443,0.001,94169.0,94168.0,0.0951462]
[1735754739685,0.15,94170.0,94168.0,0.0951462]
[1735754740432,0.001,94169.0,94168.0,0.0951462]
[1735754741677,0.002,94169.0,94168.0,0.0951462]
[1735754742108,0.001,94169.0,94168.0,0.0951462]
[1735754743335,0.002,94169.0,94168.0,0.0961462]
[1735754743538,0.002,94169.0,94168.0,0.37143252]
[1735754743745,0.002,94169.0,94168.0,0.40857577]
[1735754743949,0.002,94169.0,94168.0,0.37143252]
[1735754754221,0.212322,94197.0,94171.0,0.212379]
[1735754754431,0.212322,94197.0,94175.0,0.023]
[1735754754640,0.212322,94197.0,94177.0,0.023]
[1735754754848,0.212322,94197.0,94179.0,0.0723]
[1735754755060,0.15,94196.0,94181.0,0.1016]
[1735754755266,0.15,94196.0,94182.0,0.22382598]
[1735754755490,0.0013195,94183.0,94182.0,0.22382598]
[1735754755908,0.0033195,94183.0,94182.0,0.22382598]
[1735754756218,0.0023195,94183.0,94182.0,0.22382598]
[1735754756598,0.0033195,94183.0,94182.0,0.25386984]
[1735754757206,0.0033195,94183.0,94182.0,0.22382598]
[1735754757933,0.0023195,94183.0,94182.0,0.22382598]
[1735754758158,0.0023195,94183.0,94182.0,0.22882598]
[1735754760419,0.0023195,94183.0,94182.0,0.30482598]
[1735754760622,0.0023195,94183.0,94182.0,0.32782598]
[1735754761871,0.0003195,94183.0,94182.0,0.32282598]
[1735754762079,0.0003195,94183.0,94182.0,0.32482598]
[1735754762282,0.0013195,94183.0,94182.0,0.23182598]
[1735754762485,0.0003195,94183.0,94182.0,0.22382598]
[1735754762909,0.0013195,94183.0,94182.0,0.12883966]
[1735754763460,0.0013195,94183.0,94182.0,0.10583966]
[1735754763660,0.0003195,94183.0,94182.0,0.09983966]
[1735754764144,0.0003195,94183.0,94182.0,0.09683966]
[1735754764369,0.0003195,94183.0,94182.0,0.09983966]
[1735754764889,0.0013195,94183.0,94182.0,0.10283966]
[1735754765090,0.0013195,94183.0,94182.0,0.10583966]
[1735754765296,0.0013195,94183.0,94182.0,0.09983966]
[1735754766209,0.0023195,94183.0,94182.0,0.10683966]
[1735754766589,0.0023195,94183.0,94182.0,0.33282598]
[1735754767462,0.0023195,94183.0,94182.0,0.32982598]
[1735754767645,0.0023195,94183.0,94182.0,0.33282598]
[1735754768028,0.0003195,94183.0,94182.0,0.32282598]
[1735754768262,0.0013195,94183.0,94182.0,0.32882598]
[1735754768466,0.0013195,94183.0,94182.0,0.33182598]
[1735754768669,0.0013195,94183.0,94182.0,0.32582598]
[1735754768876,0.0023195,94183.0,94182.0,0.37033858]
[1735754770893,0.0023195,94183.0,94182.0,0.33282598]
[1735754772088,0.0023195,94183.0,94182.0,0.25422598]
[1735754772927,0.0023195,94183.0,94182.0,0.37532598]
[1735754779157,0.0023195,94183.0,94182.0,0.41787498]
[1735754784187,0.0023195,94183.0,94182.0,0.41487498]
[1735754784388,0.0003195,94183.0,94182.0,0.49183588]
[1735754784608,0.0003195,94183.0,94182.0,0.50183588]
[1735754784786,0.0013195,94183.0,94182.0,0.41787498]
[1735754784983,0.0013195,94183.0,94182.0,0.40787498]
[1735754785214,0.0013195,94183.0,94182.0,0.41687498]
[1735754785414,0.0033195,94183.0,94182.0,0.42187498]
[1735754796705,0.212327,94195.0,94183.0,0.023]
[1735754796900,0.212334,94191.0,94190.0,0.099]
[1735754797060,0.212334,94191.0,94190.0,0.20298632]
[1735754797268,0.212327,94195.0,94192.0,0.099]
[1735754797498,0.212327,94195.0,94193.0,0.023]
[1735754797730,0.212327,94195.0,94194.0,0.0182284]
[1735754797904,0.213327,94195.0,94194.0,0.0182284]
[1735754798709,0.212327,94195.0,94194.0,0.0182284]
[1735754798912,0.213327,94195.0,94194.0,0.0182284]
[1735754800628,0.214327,94195.0,94194.0,0.28063619]
[1735754801411,0.214327,94195.0,94194.0,0.25621472]
[1735754801602,0.212327,94195.0,94194.0,0.24821472]
[1735754802372,0.213327,94195.0,94194.0,0.15221472]
[1735754802820,0.213327,94195.0,94194.0,0.15621472]
[1735754803164,0.486881,94195.0,94194.0,0.0292284]
[1735754803370,0.595951,94195.0,94194.0,0.0292284]
[1735754803571,0.384342,94195.0,94194.0,0.011]
[1735754803976,0.384342,94195.0,94194.0,0.02922592]
[1735754804208,0.384342,94195.0,94194.0,0.011]
[1735754804410,0.3845128,94195.0,94194.0,0.02922592]
[1735754804609,0.3845128,94195.0,94194.0,0.011]
[1735754804807,0.3408628,94195.0,94194.0,0.02922592]
[1735754805101,0.2134978,94195.0,94194.0,0.02922592]
[1735754805307,0.3409628,94195.0,94194.0,0.02922592]
[1735754806551,0.2134978,94195.0,94194.0,0.02922592]
[1735754806754,0.0011708,94195.0,94194.0,0.16634851]
[1735754807255,0.0011708,94195.0,94194.0,0.24794851]
[1735754808218,0.0011708,94195.0,94194.0,0.35193483]
[1735754808618,0.0011708,94195.0,94194.0,0.33681224]
[1735754812451,9.313e-05,94198.0,94195.0,0.023]
[1735754812652,0.212305,94204.0,94197.0,0.023]
[1735754813092,0.21232,94198.0,94197.0,0.023]
[1735754813873,0.21232,94198.0,94197.0,0.026]
[1735754814102,0.21232,94198.0,94197.0,0.003]
[1735754814103,0.36232,94198.0,94197.0,0.003]
[1735754814313,0.36232,94198.0,94180.0,0.099]
[1735754814314,0.212357,94181.0,94180.0,0.099]
[1735754814524,0.0817,94185.0,94171.0,0.0004992]
[1735754814723,0.212375,94173.0,94171.0,0.0004992]
[1735754816073,0.212375,94173.0,94171.0,0.0014992]
[1735754816409,0.212375,94173.0,94171.0,0.0004992]
[1735754816837,0.212375,94173.0,94171.0,0.0044992]
[1735754817301,0.212375,94173.0,94171.0,0.0014992]
[1735754817500,0.212375,94173.0,94171.0,0.0044992]
[1735754819783,0.212375,94173.0,94171.0,0.0014992]
[1735754819984,0.212375,94173.0,94171.0,0.0004992]
[1735754820185,0.212375,94173.0,94171.0,0.0044992]
[1735754820965,0.212354,94183.0,94174.0,0.099]
[1735754821186,0.21237,94175.0,94174.0,0.122]
[1735754821635,0.21237,94175.0,94174.0,0.13890241]
[1735754821983,0.337498,94175.0,94174.0,0.13890241]
[1735754823069,0.337498,94175.0,94174.0,0.13990241]
[1735754823893,0.337498,94175.0,94174.0,0.14190241]
[1735754825924,0.337498,94175.0,94174.0,0.01990241]
[1735754826130,0.413598,94175.0,94174.0,0.01990241]
[1735754826360,0.413598,94175.0,94174.0,0.003]
[1735754826783,0.563598,94175.0,94174.0,0.003]
[1735754826992,0.212373,94174.0,94171.0,0.00033257]
[1735754827208,0.212377,94172.0,94171.0,0.00033257]
[1735754827445,1.589554,94172.0,94171.0,0.00033257]
[1735754827659,0.212381,94170.0,94168.0,3.7e-07]
[1735754827936,2.628949,94169.0,94168.0,7e-08]
[1735754828137,2.612138,94169.0,94168.0,7e-08]
[1735754828970,0.212381,94170.0,94168.0,7e-08]
[1735754829388,1.987005,94169.0,94168.0,7e-08]
[1735754829593,1.989005,94169.0,94168.0,7e-08]
[1735754829800,0.152,94169.0,94168.0,7e-08]
[1735754830018,0.15,94169.0,94168.0,7e-08]
[1735754830463,0.15,94169.0,94168.0,8.537e-05]
[1735754830672,2.08117,94169.0,94168.0,8.537e-05]
[1735754830848,2.08117,94169.0,94168.0,0.00108537]
[1735754831029,1.98864,94169.0,94168.0,8.537e-05]
[1735754831964,1.75014001,94169.0,94168.0,8.537e-05]
[1735754832379,1.75414001,94169.0,94168.0,8.537e-05]
[1735754833887,1.814301,94169.0,94168.0,8.537e-05]
[1735754834068,1.798301,94169.0,94168.0,8.537e-05]
[1735754834283,1.03575,94169.0,94168.0,8.537e-05]
[1735754834726,0.740698,94169.0,94168.0,8.537e-05]
[1735754834932,0.355674,94169.0,94168.0,8.537e-05]
[1735754836289,0.09724639,94169.0,94168.0,8.537e-05]
[1735754836727,0.212381,94170.0,94168.0,8.537e-05]
[1735754836932,0.366828,94169.0,94168.0,8.537e-05]
[1735754838117,0.18412746,94169.0,94168.0,8.537e-05]
[1735754838323,0.341838,94169.0,94168.0,8.537e-05]
[1735754838687,0.343838,94169.0,94168.0,8.537e-05]
[1735754839226,0.002,94169.0,94168.0,8.537e-05]
[1735754839479,0.111464,94169.0,94168.0,0.07988537]
[1735754839796,0.006,94169.0,94168.0,0.07988537]
[1735754840380,0.002,94169.0,94168.0,0.07988537]
[1735754840591,0.212381,94170.0,94168.0,0.08088537]
[1735754840801,0.212381,94170.0,94168.0,0.08188537]
[1735754841526,0.212381,94170.0,94168.0,0.08088537]
[1735754841721,0.140635,94169.0,94168.0,0.08088537]
[1735754842569,0.1177166,94169.0,94168.0,0.07988537]
[1735754843484,0.1177166,94169.0,94168.0,0.08088537]
[1735754844102,0.1053206,94169.0,94168.0,0.08088537]
[1735754844312,0.0001706,94169.0,94168.0,0.08088537]
[1735754844921,0.1815366,94169.0,94168.0,0.08088537]
[1735754845122,0.1136826,94169.0,94168.0,0.08088537]
[1735754845801,0.0001706,94169.0,94168.0,0.08088537]
[1735754846311,0.1090586,94169.0,94168.0,0.08088537]
[1735754846461,0.0001706,94169.0,94168.0,0.08088537]
[1735754846988,0.0001706,94169.0,94168.0,0.07988537]
[1735754847170,0.0011706,94169.0,94168.0,0.07988537]
[1735754847365,0.0001706,94169.0,94168.0,0.07988537]
[1735754848765,0.0011706,94169.0,94168.0,0.07988537]
[1735754849408,0.0021706,94169.0,94168.0,0.07988537]
[1735754849987,0.1059236,94169.0,94168.0,0.07988537]
[1735754850194,0.1039236,94169.0,94168.0,0.07988537]
[1735754850401,0.1049236,94169.0,94168.0,0.07988537]
[1735754850605,0.1049236,94169.0,94168.0,8.537e-05]
[1735754851828,0.1039236,94169.0,94168.0,8.537e-05]
[1735754852182,0.1049236,94169.0,94168.0,8.537e-05]
[1735754852362,0.1039236,94169.0,94168.0,8.537e-05]
[1735754852839,0.1049236,94169.0,94168.0,8.537e-05]
[1735754855024,0.1039236,94169.0,94168.0,8.537e-05]
[1735754855450,0.1049236,94169.0,94168.0,8.537e-05]
[1735754855659,0.1039236,94169.0,94168.0,8.537e-05]
[1735754855861,0.1049236,94169.0,94168.0,8.537e-05]
[1735754856270,0.1039236,94169.0,94168.0,8.537e-05]
[1735754856479,0.1049236,94169.0,94168.0,8.537e-05]
[1735754856895,0.1039236,94169.0,94168.0,8.537e-05]
[1735754857483,0.0001706,94169.0,94168.0,8.537e-05]
[1735754857881,0.1619726,94169.0,94168.0,8.537e-05]
[1735754858092,0.1649726,94169.0,94168.0,8.537e-05]
[1735754858497,0.1619726,94169.0,94168.0,8.537e-05]
[1735754858634,0.1629726,94169.0,94168.0,8.537e-05]
[1735754859303,0.1659726,94169.0,94168.0,8.537e-05]
[1735754859508,0.0001706,94169.0,94168.0,8.537e-05]
[1735754859712,0.0011706,94169.0,94168.0,8.537e-05]
[1735754859916,0.0011706,94169.0,94168.0,0.00793391]
[1735754860168,0.0011706,94169.0,94168.0,8.537e-05]
[1735754860342,0.0011706,94169.0,94168.0,0.01700926]
[1735754860752,0.1309936,94169.0,94168.0,0.01700926]
[1735754860956,0.1309936,94169.0,94168.0,8.537e-05]
[1735754861293,0.1289936,94169.0,94168.0,8.537e-05]
[1735754861657,0.1319936,94169.0,94168.0,0.00108537]
[1735754861854,0.1289936,94169.0,94168.0,0.00108537]
[1735754862227,0.1289936,94169.0,94168.0,0.02000926]
[1735754862447,0.1289936,94169.0,94168.0,0.00308537]
[1735754862649,0.1289936,94169.0,94168.0,0.02000926]
[1735754862835,0.1289936,94169.0,94168.0,0.00308537]
[1735754863061,0.1289936,94169.0,94168.0,0.02000926]
[1735754863235,0.1289936,94169.0,94168.0,0.00308537]
[1735754863393,0.1289936,94169.0,94168.0,0.02000926]
[1735754863736,0.1289936,94169.0,94168.0,0.00308537]
[1735754863881,0.1289936,94169.0,94168.0,0.02000926]
[1735754864080,0.1164776,94169.0,94168.0,0.00308537]
[1735754864295,0.0001706,94169.0,94168.0,0.16600926]
[1735754864493,0.0001706,94169.0,94168.0,0.24670762]
[1735754867159,0.0001706,94169.0,94168.0,0.37369394]
[1735754868115,0.0001706,94169.0,94168.0,0.37269394]
[1735754868319,0.0001706,94169.0,94168.0,0.45444163]
[1735754868777,0.0011706,94169.0,94168.0,0.46344163]
[1735754869580,0.0011706,94169.0,94168.0,0.38369394]
[1735754871260,0.0011706,94169.0,94168.0,0.28469394]
[1735754871466,0.0011706,94169.0,94168.0,0.38369394]
[1735754878562,0.0011706,94169.0,94168.0,0.42624694]
[1735754882746,0.0011706,94169.0,94168.0,0.42224694]
[1735754882994,0.0011706,94169.0,94168.0,0.46447163]
[1735754883168,0.0011706,94169.0,94168.0,0.46847163]
[1735754883402,0.0001706,94169.0,94168.0,0.45947163]
[1735754883582,0.0001706,94169.0,94168.0,0.45547163]